bitfinex-derivatives/quotes_SOLF0:USTF0_20260215
["timestamp","ask_amount","ask_price","bid_price","bid_amount"]
[1771154707272,3.36288561,89.288,89.232,4.22269539]
[1771154708269,3.3770456,89.286,89.232,4.22269539]
[1771154709169,3.37560068,89.299,89.232,4.22269539]
[1771154715081,3.35968688,89.324,89.232,4.22269539]
[1771154715276,3.35968688,89.322,89.232,4.22269539]
[1771154715477,3.35968688,89.32,89.232,4.22269539]
[1771154715686,10.42450114,89.325,89.232,4.22269539]
[1771154715687,3.35968688,89.318,89.232,4.22269539]
[1771154715874,3.35802736,89.316,89.232,4.22269539]
[1771154716081,3.35674623,89.314,89.232,4.22269539]
[1771154716281,3.35674623,89.312,89.232,4.22269539]
[1771154716487,3.35674623,89.31,89.232,4.22269539]
[1771154716782,3.35516695,89.308,89.232,4.22269539]
[1771154716983,3.35549553,89.306,89.232,4.22269539]
[1771154717175,3.35549553,89.304,89.232,4.22269539]
[1771154724280,3.40869987,89.33,89.233,3.94355454]
[1771154724587,3.40869987,89.328,89.233,3.94355454]
[1771154731782,3.40869987,89.328,89.236,3.94355454]
[1771154734890,3.40869987,89.328,89.238,37.58355454]
[1771154735094,3.40869987,89.328,89.241,3.94355454]
[1771154735291,3.40869987,89.328,89.243,37.58355454]
[1771154735486,3.40869987,89.328,89.244,3.94355454]
[1771154738589,3.40869987,89.328,89.246,37.58355454]
[1771154738793,3.40869987,89.328,89.247,3.94355454]
[1771154742096,3.40869987,89.328,89.248,3.94355454]
[1771154742297,3.40869987,89.328,89.25,3.94355454]
[1771154745700,3.40869987,89.328,89.252,4.13702952]
[1771154757500,3.40869987,89.328,89.253,153.82]
[1771154757707,3.40869987,89.328,89.254,4.13702952]
[1771154765711,3.40869987,89.328,89.243,4.13702952]
[1771154765916,3.34588287,89.326,89.244,89.28]
[1771154766216,3.34594009,89.324,89.244,89.28]
[1771154766511,3.34594009,89.322,89.244,89.28]
[1771154766713,3.34493725,89.32,89.245,20.1801]
[1771154766912,3.34514141,89.318,89.243,4.13702952]
[1771154767113,3.34514141,89.316,89.243,4.13702952]
[1771154767312,3.34514141,89.314,89.243,4.13702952]
[1771154767514,3.34514141,89.312,89.243,4.13702952]
[1771154767814,10.42450114,89.332,89.243,4.13702952]
[1771154767815,3.34514141,89.31,89.243,4.13702952]
[1771154768115,3.34514141,89.31,89.191,34.44529107]
[1771154768116,8.72356719,89.309,89.246,20.1798]
[1771154768323,8.72356719,89.308,89.246,20.1798]
[1771154768619,8.72356719,89.307,89.246,20.1798]
[1771154768816,8.72356719,89.306,89.246,20.1798]
[1771154769017,8.72356719,89.305,89.246,20.1798]
[1771154769316,8.72356719,89.304,89.246,20.1798]
[1771154769513,8.72356719,89.303,89.246,20.1798]
[1771154769714,8.72356719,89.302,89.246,20.1798]
[1771154769921,8.72356719,89.301,89.246,20.1798]
[1771154770218,10.42450114,89.322,89.246,20.1798]
[1771154770421,8.71627776,89.321,89.246,20.1798]
[1771154770621,8.71627776,89.32,89.246,20.1798]
[1771154770818,8.71627776,89.32,89.229,4.13702952]
[1771154770819,10.42450114,89.314,89.229,4.13702952]
[1771154771020,8.71627776,89.313,89.229,4.13702952]
[1771154771218,8.71627776,89.312,89.229,4.13702952]
[1771154771422,8.71627776,89.311,89.229,4.13702952]
[1771154771627,8.71627776,89.31,89.229,4.13702952]
[1771154771827,8.71627776,89.309,89.263,10.0881]
[1771154772027,8.71627776,89.308,89.263,10.0881]
[1771154772224,8.71627776,89.307,89.263,10.0881]
[1771154772425,8.71627776,89.306,89.263,10.0881]
[1771154772627,8.71627776,89.305,89.263,10.0881]
[1771154772828,8.71627776,89.304,89.263,10.0881]
[1771154773027,8.71627776,89.303,89.263,10.0881]
[1771154773224,8.71627776,89.302,89.263,10.0881]
[1771154773530,8.71627776,89.301,89.229,4.13702952]
[1771154773826,8.71627776,89.3,89.229,4.13702952]
[1771154774028,8.71627776,89.299,89.262,10.0881]
[1771154774229,10.42450114,89.321,89.262,10.0881]
[1771154774532,8.70089665,89.32,89.229,4.13702952]
[1771154774831,8.70089665,89.319,89.266,10.0877]
[1771154775027,8.70089665,89.318,89.266,10.0877]
[1771154775235,8.70089665,89.317,89.266,10.0877]
[1771154776136,10.0808,89.328,89.266,10.0877]
[1771154776330,10.44319801,89.322,89.266,10.0877]
[1771154776526,8.69822681,89.321,89.266,10.0877]
[1771154776725,8.69822681,89.32,89.266,10.0877]
[1771154776931,8.69822681,89.319,89.266,10.0877]
[1771154777234,8.69822681,89.318,89.266,10.0877]
[1771154777434,8.69822681,89.317,89.266,10.0877]
[1771154777736,8.69822681,89.316,89.266,10.0877]
[1771154777930,8.69822681,89.315,89.266,10.0877]
[1771154778137,8.69822681,89.314,89.266,10.0877]
[1771154778332,8.69822681,89.313,89.266,10.0877]
[1771154778535,8.69822681,89.312,89.266,10.0877]
[1771154778835,8.69822681,89.311,89.266,10.0877]
[1771154779038,8.69822681,89.31,89.266,10.0877]
[1771154779239,8.69131794,89.321,89.266,10.0877]
[1771154779434,8.69131794,89.32,89.266,10.0877]
[1771154779633,8.69131794,89.319,89.266,10.0877]
[1771154779830,8.69131794,89.318,89.266,10.0877]
[1771154780129,8.69131794,89.317,89.266,10.0877]
[1771154780330,8.69131794,89.316,89.266,10.0877]
[1771154780636,8.69131794,89.315,89.266,10.0877]
[1771154780832,8.69131794,89.314,89.266,10.0877]
[1771154781034,8.69131794,89.313,89.266,10.0877]
[1771154781234,10.0815,89.322,89.266,10.0877]
[1771154781235,8.69131794,89.321,89.266,10.0877]
[1771154781436,8.69131794,89.32,89.266,10.0877]
[1771154781736,8.69131794,89.319,89.266,10.0877]
[1771154781935,8.69131794,89.318,89.266,10.0877]
[1771154782135,8.69131794,89.317,89.266,10.0877]
[1771154782438,10.0815,89.322,89.266,10.0877]
[1771154782439,8.69131794,89.316,89.266,10.0877]
[1771154782638,8.69131794,89.315,89.266,10.0877]
[1771154782841,8.69131794,89.314,89.266,10.0877]
[1771154783134,8.69131794,89.321,89.266,10.0877]
[1771154783335,8.69131794,89.32,89.266,10.0877]
[1771154783537,8.69131794,89.319,89.266,10.0877]
[1771154783739,8.69131794,89.318,89.266,10.0877]
[1771154783938,8.69131794,89.317,89.266,10.0877]
[1771154784136,8.69131794,89.316,89.266,10.0877]
[1771154784340,8.69131794,89.321,89.266,10.0877]
[1771154784530,450.85023929,89.331,89.238,17.71710705]
[1771154784531,33.64,89.314,89.238,17.71710705]
[1771154784736,42.33131794,89.313,89.238,17.71710705]
[1771154785038,8.69131794,89.312,89.238,17.71710705]
[1771154785239,8.69131794,89.311,89.238,17.71710705]
[1771154785438,8.69131794,89.31,89.238,17.71710705]
[1771154785637,8.69131794,89.309,89.238,17.71710705]
[1771154785939,10.0833,89.306,89.248,10.0897]
[1771154786533,18.77461794,89.306,89.248,10.0897]
[1771154788344,8.69131794,89.305,89.248,10.0897]
[1771154788641,10.0837,89.302,89.248,10.0897]
[1771154788844,224.81131794,89.301,89.222,17.67360479]
[1771154789143,224.81131794,89.3,89.222,17.67360479]
[1771154789341,8.69131794,89.299,89.222,17.67360479]
[1771154789543,8.69131794,89.298,89.222,17.67360479]
[1771154789745,8.69131794,89.297,89.248,10.0897]
[1771154789941,8.69131794,89.296,89.248,10.0897]
[1771154790141,8.69131794,89.295,89.248,10.0897]
[1771154790340,8.69131794,89.294,89.248,10.0897]
[1771154790542,8.69131794,89.293,89.248,10.0897]
[1771154790736,8.69131794,89.292,89.248,10.0897]
[1771154791047,8.69131794,89.291,89.248,10.0897]
[1771154791238,8.69131794,89.29,89.248,10.0897]
[1771154791438,8.69131794,89.289,89.248,10.0897]
[1771154791635,8.69131794,89.288,89.248,10.0897]
[1771154791841,8.69131794,89.287,89.248,10.0897]
[1771154792041,8.69131794,89.286,89.248,10.0897]
[1771154792241,8.69131794,89.285,89.248,10.0897]
[1771154792547,216.12,89.3,89.248,10.0897]
[1771154792846,8.70550831,89.299,89.248,10.0897]
[1771154793145,8.70550831,89.298,89.248,10.0897]
[1771154793343,8.70550831,89.297,89.248,10.0897]
[1771154793543,8.70550831,89.296,89.248,10.0897]
[1771154793743,8.70550831,89.295,89.248,10.0897]
[1771154793941,8.70550831,89.294,89.248,10.0897]
[1771154794141,8.70550831,89.293,89.248,10.0897]
[1771154794444,8.70550831,89.292,89.249,22.74011953]
[1771154794638,188.96,89.303,89.249,22.74011953]
[1771154794842,10.44319801,89.314,89.207,20.1886]
[1771154794843,8.70275151,89.302,89.207,20.1886]
[1771154795141,8.70275151,89.301,89.256,10.0888]
[1771154795344,8.70275151,89.3,89.256,10.0888]
[1771154795545,8.70275151,89.299,89.256,10.0888]
[1771154795748,8.70275151,89.298,89.256,10.0888]
[1771154795942,8.70275151,89.297,89.256,10.0888]
[1771154796139,8.70275151,89.296,89.256,10.0888]
[1771154796345,8.70275151,89.295,89.256,10.0888]
[1771154796544,8.70275151,89.294,89.256,10.0888]
[1771154796749,8.70275151,89.293,89.256,10.0888]
[1771154796942,8.70275151,89.292,89.256,10.0888]
[1771154797145,8.70470398,89.291,89.256,10.0888]
[1771154797344,193.3,89.308,89.256,10.0888]
[1771154797644,8.70484725,89.307,89.256,10.0888]
[1771154797845,8.70484725,89.306,89.256,10.0888]
[1771154798046,8.70484725,89.305,89.256,10.0888]
[1771154798247,8.70484725,89.304,89.256,10.0888]
[1771154798447,8.70484725,89.303,89.256,10.0888]
[1771154798641,8.70484725,89.302,89.256,10.0888]
[1771154798842,8.70484725,89.301,89.256,10.0888]
[1771154799039,8.70484725,89.3,89.256,10.0888]
[1771154799247,8.70484725,89.299,89.256,10.0888]
[1771154799447,8.70484725,89.298,89.256,10.0888]
[1771154799650,8.70484725,89.297,89.256,10.0888]
[1771154799944,8.70484725,89.296,89.263,10.0881]
[1771154800148,8.70484725,89.295,89.263,10.0881]
[1771154800349,8.70484725,89.294,89.263,10.0881]
[1771154800550,8.70484725,89.293,89.263,10.0881]
[1771154800740,8.70484725,89.292,89.263,10.0881]
[1771154800943,8.70484725,89.291,89.263,10.0881]
[1771154801150,194.5,89.31,89.263,10.0881]
[1771154801453,8.71078528,89.309,89.263,10.0881]
[1771154801651,8.71078528,89.308,89.263,10.0881]
[1771154801848,8.71078528,89.307,89.263,10.0881]
[1771154802147,8.71078528,89.306,89.263,10.0881]
[1771154802347,8.71078528,89.305,89.263,10.0881]
[1771154802650,8.71078528,89.304,89.263,10.0881]
[1771154802850,8.71078528,89.303,89.263,10.0881]
[1771154803051,8.71078528,89.302,89.263,10.0881]
[1771154803250,8.71078528,89.301,89.263,10.0881]
[1771154803553,8.71078528,89.3,89.263,10.0881]
[1771154803852,8.71078528,89.299,89.263,10.0881]
[1771154804145,8.71078528,89.298,89.263,10.0881]
[1771154804351,8.71078528,89.297,89.263,10.0881]
[1771154804547,8.71078528,89.296,89.263,10.0881]
[1771154804749,8.71078528,89.295,89.263,10.0881]
[1771154804953,8.71078528,89.294,89.263,10.0881]
[1771154805153,8.71078528,89.293,89.263,10.0881]
[1771154805354,8.71078528,89.292,89.263,10.0881]
[1771154805555,8.71078528,89.291,89.263,10.0881]
[1771154805751,8.71078528,89.29,89.263,10.0881]
[1771154805952,8.71078528,89.289,89.263,10.0881]
[1771154806154,8.71078528,89.288,89.263,10.0881]
[1771154806349,33.64,89.318,89.263,10.0881]
[1771154806350,8.71078528,89.287,89.263,10.0881]
[1771154806557,8.71078528,89.286,89.263,10.0881]
[1771154806755,8.71078528,89.285,89.263,10.0881]
[1771154806953,8.71078528,89.284,89.263,10.0881]
[1771154807158,8.71078528,89.283,89.263,10.0881]
[1771154807350,194.4,89.308,89.263,10.0881]
[1771154807550,8.72797494,89.307,89.263,10.0881]
[1771154807859,194.4,89.308,89.263,10.0881]
[1771154807860,8.72797494,89.306,89.263,10.0881]
[1771154808151,8.72797494,89.305,89.263,10.0881]
[1771154808359,8.72797494,89.304,89.263,10.0881]
[1771154808657,8.72797494,89.303,89.263,10.0881]
[1771154808855,194.4,89.308,89.263,10.0881]
[1771154808856,8.72797494,89.302,89.263,10.0881]
[1771154809056,8.72797494,89.301,89.263,10.0881]
[1771154809259,8.72797494,89.3,89.263,10.0881]
[1771154809457,8.72797494,89.299,89.263,10.0881]
[1771154809657,8.72797494,89.298,89.263,10.0881]
[1771154809856,8.72797494,89.297,89.263,10.0881]
[1771154810159,8.72797494,89.296,89.263,10.0881]
[1771154810360,8.72797494,89.295,89.263,10.0881]
[1771154810553,8.72797494,89.294,89.263,10.0881]
[1771154810754,8.72797494,89.293,89.263,10.0881]
[1771154810956,8.72797494,89.292,89.263,10.0881]
[1771154811164,8.72797494,89.291,89.263,10.0881]
[1771154811456,194.32,89.307,89.263,10.0881]
[1771154811457,8.72797494,89.29,89.263,10.0881]
[1771154811656,8.72797494,89.289,89.263,10.0881]
[1771154811861,8.72797494,89.288,89.263,10.0881]
[1771154812058,8.72797494,89.287,89.263,10.0881]
[1771154812260,8.72797494,89.286,89.263,10.0881]
[1771154812553,8.72797494,89.285,89.263,10.0881]
[1771154812754,8.72797494,89.284,89.263,10.0881]
[1771154812951,8.72797494,89.283,89.263,10.0881]
[1771154813151,8.72797494,89.282,89.263,10.0881]
[1771154813356,8.72797494,89.281,89.263,10.0881]
[1771154813556,10.44319801,89.301,89.263,10.0881]
[1771154813557,8.72797494,89.28,89.263,10.0881]
[1771154813757,7.494e-05,89.279,89.263,10.0881]
[1771154813957,10.44319801,89.301,89.263,10.0881]
[1771154814560,10.44319801,89.302,89.263,10.0881]
[1771154815367,10.44319801,89.301,89.263,10.0881]
[1771154817260,10.44319801,89.293,89.263,10.0881]
[1771154818969,10.44319801,89.293,89.263,32.85594436]
[1771154819166,10.44319801,89.293,89.263,10.0881]
[1771154819370,10.44319801,89.293,89.266,10.0876]
[1771154820568,10.44319801,89.291,89.266,10.0876]
[1771154820968,13.89142004,89.303,89.266,10.0876]
[1771154820969,10.44319801,89.292,89.266,10.0876]
[1771154822267,10.44319801,89.291,89.266,10.0876]
[1771154822461,10.44319801,89.293,89.266,10.0876]
[1771154822771,10.44319801,89.293,89.259,10.0884]
[1771154823168,10.44319801,89.292,89.259,10.0884]
[1771154823367,10.44319801,89.291,89.259,10.0884]
[1771154823872,10.44319801,89.291,89.215,20.1869]
[1771154823873,10.44319801,89.28,89.244,22.78766474]
[1771154825670,8.69009199,89.279,89.244,22.78766474]
[1771154825872,8.69009199,89.278,89.244,22.78766474]
[1771154826074,8.69009199,89.277,89.244,22.78766474]
[1771154826270,8.69009199,89.276,89.244,22.78766474]
[1771154826470,8.69009199,89.275,89.24,10.0906]
[1771154826672,8.69009199,89.274,89.24,10.0906]
[1771154826873,8.69009199,89.273,89.24,10.0906]
[1771154827066,8.69009199,89.272,89.24,10.0906]
[1771154827367,8.69009199,89.271,89.24,10.0906]
[1771154827572,8.69009199,89.27,89.24,10.0906]
[1771154827773,8.69009199,89.269,89.24,10.0906]
[1771154827969,8.69009199,89.268,89.24,10.0906]
[1771154828174,8.69009199,89.267,89.24,10.0906]
[1771154828374,8.69009199,89.266,89.24,10.0906]
[1771154828574,8.69009199,89.265,89.24,10.0906]
[1771154828776,8.69009199,89.264,89.24,10.0906]
[1771154828978,8.69009199,89.263,89.24,10.0906]
[1771154829272,8.69009199,89.262,89.24,10.0906]
[1771154829476,8.69009199,89.261,89.24,10.0906]
[1771154829678,8.69009199,89.26,89.24,10.0906]
[1771154829880,9.199e-05,89.259,89.24,10.0906]
[1771154830079,10.44319801,89.271,89.24,10.0906]
[1771154830279,33.64,89.3,89.24,10.0906]
[1771154830280,10.44319801,89.272,89.24,10.0906]
[1771154830684,10.44319801,89.273,89.24,10.0906]
[1771154831682,10.44319801,89.273,89.242,10.0904]
[1771154832282,10.44319801,89.274,89.242,10.0904]
[1771154835384,10.44319801,89.275,89.242,10.0904]
[1771154836281,10.44319801,89.275,89.242,32.81301436]
[1771154836487,10.44319801,89.275,89.243,22.72261436]
[1771154838290,10.44319801,89.276,89.243,22.72261436]
[1771154840388,10.44319801,89.277,89.243,22.72261436]
[1771154841787,8.63754355,89.276,89.243,22.72261436]
[1771154841988,8.63754355,89.275,89.243,22.72261436]
[1771154842190,8.63754355,89.274,89.243,22.72261436]
[1771154842391,8.63754355,89.273,89.243,22.72261436]
[1771154842591,8.63754355,89.272,89.243,22.72261436]
[1771154842789,8.63754355,89.271,89.243,22.72261436]
[1771154842991,8.63754355,89.27,89.243,22.72261436]
[1771154843192,8.63754355,89.269,89.243,22.72261436]
[1771154843393,8.63754355,89.268,89.243,22.72261436]
[1771154843588,8.63754355,89.267,89.243,22.72261436]
[1771154843790,10.44319801,89.277,89.195,20.1914]
[1771154843791,8.63754355,89.266,89.231,22.7098365]
[1771154843988,8.63754355,89.265,89.231,22.7098365]
[1771154844190,8.63754355,89.264,89.231,22.7098365]
[1771154844393,8.63754355,89.263,89.231,22.7098365]
[1771154844592,8.63754355,89.262,89.231,22.7098365]
[1771154844792,8.63754355,89.261,89.233,22.7090912]
[1771154844994,8.63754355,89.26,89.233,22.7090912]
[1771154845195,8.63754355,89.259,89.233,22.7090912]
[1771154845500,8.63754355,89.258,89.233,22.7090912]
[1771154845800,8.63754355,89.257,89.234,22.7074627]
[1771154846000,8.63754355,89.256,89.234,22.7074627]
[1771154846201,8.63754355,89.255,89.234,22.7074627]
[1771154846401,8.63754355,89.254,89.234,22.7074627]
[1771154846603,8.63754355,89.253,89.234,22.7074627]
[1771154846797,8.63754355,89.252,89.234,22.7074627]
[1771154846996,10.44319801,89.273,89.234,22.7074627]
[1771154847195,8.63468472,89.272,89.234,22.7074627]
[1771154847399,8.63468472,89.271,89.234,22.7074627]
[1771154847596,8.63468472,89.27,89.234,22.7074627]
[1771154847799,8.63468472,89.269,89.234,22.7074627]
[1771154847998,8.63468472,89.268,89.234,22.7074627]
[1771154848199,8.63468472,89.267,89.234,22.7074627]
[1771154848395,8.63468472,89.266,89.234,22.7074627]
[1771154848703,8.63468472,89.265,89.234,22.7074627]
[1771154848903,8.63468472,89.264,89.234,22.7074627]
[1771154849204,8.63468472,89.263,89.234,22.7074627]
[1771154849504,8.63468472,89.262,89.234,22.7074627]
[1771154849702,8.63468472,89.261,89.234,22.7074627]
[1771154849903,8.63468472,89.26,89.234,22.7074627]
[1771154850203,8.63468472,89.259,89.234,22.7074627]
[1771154850402,8.63468472,89.258,89.234,22.7074627]
[1771154850605,8.63468472,89.257,89.234,22.7074627]
[1771154850805,8.63468472,89.256,89.234,22.7074627]
[1771154851106,8.63468472,89.255,89.234,22.7074627]
[1771154851304,8.63468472,89.254,89.234,22.7074627]
[1771154851504,8.63468472,89.253,89.234,22.7074627]
[1771154851706,10.44319801,89.273,89.234,22.7074627]
[1771154851899,8.63655843,89.272,89.234,22.7074627]
[1771154852105,8.63655843,89.271,89.234,22.7074627]
[1771154852306,8.63655843,89.27,89.234,22.7074627]
[1771154852506,8.63655843,89.269,89.234,22.7074627]
[1771154852808,8.63655843,89.268,89.234,22.7074627]
[1771154852997,8.63655843,89.267,89.234,22.7074627]
[1771154853202,8.63655843,89.266,89.234,22.7074627]
[1771154853402,8.63655843,89.265,89.234,22.7074627]
[1771154853602,8.63655843,89.264,89.234,22.7074627]
[1771154853804,8.63655843,89.263,89.234,22.7074627]
[1771154854000,8.63655843,89.262,89.234,22.7074627]
[1771154854205,8.63655843,89.261,89.234,22.7074627]
[1771154854409,8.63655843,89.26,89.234,22.7074627]
[1771154854706,8.63655843,89.259,89.234,22.7074627]
[1771154854907,8.63655843,89.258,89.234,22.7074627]
[1771154855108,8.63655843,89.257,89.234,22.7074627]
[1771154855308,8.63655843,89.256,89.234,22.7074627]
[1771154855507,8.63655843,89.255,89.234,22.7074627]
[1771154855708,8.63655843,89.254,89.234,22.7074627]
[1771154855909,8.63655843,89.253,89.234,22.7074627]
[1771154856108,8.63655843,89.252,89.234,22.7074627]
[1771154856409,10.44319801,89.272,89.234,22.7074627]
[1771154856708,8.63779281,89.271,89.234,22.7074627]
[1771154856903,8.63779281,89.27,89.234,22.7074627]
[1771154857107,8.63779281,89.269,89.237,22.72316752]
[1771154857307,10.44319801,89.272,89.237,22.72316752]
[1771154857308,8.63779281,89.268,89.237,22.72316752]
[1771154857508,8.63779281,89.267,89.237,22.72316752]
[1771154857705,8.63779281,89.266,89.242,22.72316752]
[1771154857912,190.2,89.287,89.242,22.72316752]
[1771154858202,10.44319801,89.295,89.242,22.72316752]
[1771154858812,10.44319801,89.3,89.254,28.47648211]
[1771154859514,10.44319801,89.299,89.254,28.47648211]
[1771154860304,10.44319801,89.293,89.241,18.36159295]
[1771154860801,10.44319801,89.293,89.244,18.36159295]
[1771154861202,10.44319801,89.299,89.244,18.36159295]
[1771154861611,10.44319801,89.305,89.244,18.36159295]
[1771154862409,10.44319801,89.305,89.254,10.089]
[1771154863414,226.78,89.304,89.254,10.089]
[1771154865002,10.44319801,89.305,89.257,18.29524002]
[1771154865207,185.48,89.304,89.257,18.29524002]
[1771154867712,10.44319801,89.298,89.257,18.29524002]
[1771154869817,8.60233044,89.297,89.257,18.29524002]
[1771154870116,8.60233044,89.296,89.257,18.29524002]
[1771154870316,8.60233044,89.295,89.257,18.29524002]
[1771154870619,8.60233044,89.294,89.257,18.29524002]
[1771154870917,8.60233044,89.293,89.257,18.29524002]
[1771154871113,8.60233044,89.292,89.26,18.27827936]
[1771154871313,8.60233044,89.291,89.26,18.27827936]
[1771154871514,10.45217581,89.299,89.26,18.27827936]
[1771154871515,8.60233044,89.29,89.26,18.27827936]
[1771154871716,8.60233044,89.289,89.26,18.27827936]
[1771154871912,8.60233044,89.288,89.26,18.27827936]
[1771154872213,8.60233044,89.287,89.26,18.27827936]
[1771154872408,8.60233044,89.286,89.261,10.0883]
[1771154872608,8.60233044,89.285,89.261,10.0883]
[1771154872815,8.60233044,89.284,89.261,10.0883]
[1771154873015,8.60233044,89.283,89.261,10.0883]
[1771154873217,8.60233044,89.282,89.261,10.0883]
[1771154873415,8.60233044,89.281,89.261,10.0883]
[1771154873609,8.60233044,89.28,89.261,10.0883]
[1771154873806,10.45217581,89.3,89.261,10.0883]
[1771154873807,8.60233044,89.279,89.261,10.0883]
[1771154874010,10.45217581,89.303,89.268,18.2847734]
[1771154874211,8.59957822,89.302,89.268,18.2847734]
[1771154874419,8.59957822,89.301,89.268,18.2847734]
[1771154874718,8.59957822,89.3,89.268,18.2847734]
[1771154874910,8.59957822,89.299,89.268,18.2847734]
[1771154875117,8.59957822,89.298,89.268,18.2847734]
[1771154875310,8.59957822,89.297,89.268,18.2847734]
[1771154875517,8.59957822,89.296,89.268,18.2847734]
[1771154875819,8.59957822,89.295,89.269,10.0873]
[1771154876018,8.59957822,89.294,89.269,10.0873]
[1771154876318,230.18,89.306,89.269,10.0873]
[1771154876319,8.59957822,89.293,89.269,10.0873]
[1771154876514,8.59957822,89.292,89.276,10.0865]
[1771154876720,230.18,89.306,89.277,18.28502654]
[1771154877820,230.18,89.306,89.279,10.0862]
[1771154887334,230.18,89.306,89.273,10.0869]
[1771154887922,230.18,89.306,89.281,10.0859]
[1771154888733,8.53302136,89.305,89.281,10.0859]
[1771154888934,8.53302136,89.304,89.281,10.0859]
[1771154889135,8.53302136,89.303,89.281,10.0859]
[1771154889431,8.53302136,89.302,89.281,10.0859]
[1771154889634,8.53302136,89.301,89.281,10.0859]
[1771154889832,8.53302136,89.3,89.281,10.0859]
[1771154890030,8.53302136,89.299,89.281,10.0859]
[1771154890226,8.53302136,89.298,89.281,10.0859]
[1771154890426,8.53302136,89.297,89.281,10.0859]
[1771154890627,8.53302136,89.296,89.281,10.0859]
[1771154890829,8.53302136,89.295,89.274,10.0868]
[1771154891033,8.53302136,89.294,89.274,10.0868]
[1771154891230,8.53302136,89.293,89.274,10.0868]
[1771154891531,8.53302136,89.292,89.274,10.0868]
[1771154891732,230.18,89.306,89.274,10.0868]
[1771154891933,8.53137949,89.305,89.274,10.0868]
[1771154892123,8.53137949,89.304,89.274,10.0868]
[1771154892331,8.53137949,89.303,89.274,10.0868]
[1771154892530,8.53137949,89.302,89.274,10.0868]
[1771154892830,8.53137949,89.301,89.274,10.0868]
[1771154893030,8.53137949,89.3,89.274,10.0868]
[1771154893235,8.53137949,89.299,89.274,10.0868]
[1771154893533,8.53137949,89.298,89.274,10.0868]
[1771154893835,8.53137949,89.297,89.274,10.0868]
[1771154894033,8.53137949,89.296,89.274,28.47649937]
[1771154894229,8.53137949,89.295,89.274,28.47649937]
[1771154894437,8.53137949,89.294,89.274,28.47649937]
[1771154894634,8.53137949,89.293,89.274,28.47649937]
[1771154894838,8.53137949,89.292,89.274,28.47649937]
[1771154895037,230.18,89.306,89.277,10.0864]
[1771154897638,230.18,89.306,89.266,10.0876]
[1771154899846,230.18,89.306,89.272,10.087]
[1771154901442,10.4383748,89.305,89.272,10.087]
[1771154902349,10.4383748,89.303,89.272,10.087]
[1771154904047,10.4383748,89.303,89.272,28.66879042]
[1771154905347,10.4383748,89.302,89.272,28.66879042]
[1771154906538,10.4383748,89.301,89.272,28.66879042]
[1771154906945,8.51766675,89.3,89.272,28.66879042]
[1771154907144,8.51766675,89.299,89.272,28.66879042]
[1771154907343,8.51766675,89.298,89.272,28.66879042]
[1771154907546,8.51766675,89.297,89.272,28.66879042]
[1771154907748,8.51766675,89.296,89.272,28.66879042]
[1771154908047,8.51766675,89.295,89.272,28.66879042]
[1771154908248,8.51766675,89.294,89.272,28.66879042]
[1771154908443,8.51766675,89.293,89.272,28.66879042]
[1771154908644,8.51766675,89.292,89.272,28.66879042]
[1771154908849,8.51766675,89.291,89.272,28.66879042]
[1771154909049,8.51766675,89.29,89.272,28.66879042]
[1771154909249,10.4383748,89.301,89.272,28.66879042]
[1771154909250,8.51766675,89.289,89.272,28.66879042]
[1771154909449,8.51766675,89.288,89.272,28.66879042]
[1771154909751,8.51766675,89.287,89.272,28.66879042]
[1771154909946,8.51766675,89.286,89.272,28.66879042]
[1771154910147,8.51766675,89.285,89.272,28.66879042]
[1771154910351,8.51766675,89.284,89.272,28.66879042]
[1771154910552,8.51766675,89.283,89.272,28.66879042]
[1771154910851,10.4383748,89.301,89.272,28.66879042]
[1771154911654,10.4383748,89.301,89.272,18.58179042]
[1771154916352,10.4383748,89.3,89.272,18.58179042]
[1771154917255,10.4383748,89.305,89.272,18.58179042]
[1771154920255,10.4383748,89.3,89.272,18.58179042]
[1771154922957,8.48133647,89.299,89.272,18.58179042]
[1771154923159,8.48133647,89.298,89.272,18.58179042]
[1771154923359,8.48133647,89.297,89.272,18.58179042]
[1771154923659,8.48133647,89.296,89.272,18.58179042]
[1771154923855,8.48133647,89.295,89.272,18.58179042]
[1771154924052,8.48133647,89.294,89.272,18.58179042]
[1771154924251,8.48133647,89.293,89.272,18.58179042]
[1771154924459,8.48133647,89.292,89.272,18.58179042]
[1771154924661,8.48133647,89.291,89.272,18.58179042]
[1771154924853,8.48133647,89.29,89.272,18.58179042]
[1771154925049,8.48133647,89.289,89.272,18.58179042]
[1771154925258,8.48133647,89.288,89.272,18.58179042]
[1771154925560,10.4383748,89.301,89.272,18.58179042]
[1771154927061,10.4383748,89.3,89.272,18.58179042]
[1771154928156,10.4383748,89.328,89.272,18.58179042]